[Event "*** SCC Grand Prix: Titled Tuesday Blitz"]
[Site "Chess.com"]
[Date "2020.06.09"]
[Round "4"]
[White "Danesz22"]
[Black "Sanyura"]
[Result "1-0"]
[WhiteElo "2360"]
[BlackElo "2491"]
[TimeControl "180+1"]
[EndTime "9:40:49 PDT"]
[Termination "Danesz22 won by resignation"]

1. e4 {[%clk 0:02:59.9]} 1... c5 {[%clk 0:02:56.1]} 2. Nf3 {[%clk 0:02:59.2]}
2... e6 {[%clk 0:02:54.4]} 3. c3 {[%clk 0:02:56.6]} 3... d5 {[%clk 0:02:53.3]}
4. exd5 {[%clk 0:02:56.5]} 4... exd5 {[%clk 0:02:54.2]} 5. d4 {[%clk 0:02:56.6]}
5... Bd6 {[%clk 0:02:54.1]} 6. dxc5 {[%clk 0:02:55.5]} 6... Bxc5 {[%clk
0:02:52.1]} 7. Bb5+ {[%clk 0:02:55.3]} 7... Nc6 {[%clk 0:02:51.2]} 8. O-O {[%clk
0:02:55.3]} 8... Ne7 {[%clk 0:02:50.5]} 9. Nbd2 {[%clk 0:02:55.3]} 9... a6
{[%clk 0:02:48]} 10. Bd3 {[%clk 0:02:53.6]} 10... O-O {[%clk 0:02:47.4]} 11. Nb3
{[%clk 0:02:53.7]} 11... Ba7 {[%clk 0:02:47.3]} 12. h3 {[%clk 0:02:53.5]} 12...
Qd6 {[%clk 0:02:46.5]} 13. Bg5 {[%clk 0:02:46.4]} 13... Bf5 {[%clk 0:02:44]} 14.
Nbd4 {[%clk 0:02:38.5]} 14... Bxd3 {[%clk 0:02:34.4]} 15. Qxd3 {[%clk
0:02:39.4]} 15... Nxd4 {[%clk 0:02:34.8]} 16. Nxd4 {[%clk 0:02:37.3]} 16... Ng6
{[%clk 0:02:24.9]} 17. Nf5 {[%clk 0:02:32.1]} 17... Qd7 {[%clk 0:02:14]} 18.
Rfe1 {[%clk 0:02:23.8]} 18... Rae8 {[%clk 0:02:12.5]} 19. Rad1 {[%clk 0:01:45]}
19... h6 {[%clk 0:02:06.4]} 20. Bc1 {[%clk 0:01:43.2]} 20... Bb8 {[%clk
0:02:02.5]} 21. g3 {[%clk 0:01:38.8]} 21... Rxe1+ {[%clk 0:01:52]} 22. Rxe1
{[%clk 0:01:37.9]} 22... Ne5 {[%clk 0:01:49.5]} 23. Rxe5 {[%clk 0:01:06.2]}
23... Bxe5 {[%clk 0:01:40.9]} 24. Qf3 {[%clk 0:01:03.6]} 24... Re8 {[%clk
0:01:29]} 25. Qg4 {[%clk 0:00:49.3]} 25... Kh7 {[%clk 0:00:59.4]} 26. Qh5 {[%clk
0:00:46.8]} 26... Re6 {[%clk 0:00:50.5]} 27. Be3 {[%clk 0:00:41]} 27... Rf6
{[%clk 0:00:44.7]} 28. g4 {[%clk 0:00:39.9]} 28... Bb8 {[%clk 0:00:39.7]} 29.
Bd4 {[%clk 0:00:35.7]} 29... Rg6 {[%clk 0:00:39.4]} 30. Bxg7 {[%clk 0:00:35.6]}
30... Bf4 {[%clk 0:00:28.6]} 31. Bd4 {[%clk 0:00:30.8]} 31... Qc7 {[%clk
0:00:27.1]} 32. Kg2 {[%clk 0:00:28.9]} 32... Be5 {[%clk 0:00:15.3]} 33. Nxh6
{[%clk 0:00:19.4]} 33... Rxh6 {[%clk 0:00:15]} 34. Qf5+ {[%clk 0:00:19.6]} 34...
Rg6 {[%clk 0:00:14.4]} 35. Bxe5 {[%clk 0:00:19.9]} 35... Qe7 {[%clk 0:00:14.5]}
36. Kg3 {[%clk 0:00:14.2]} 36... Qe6 {[%clk 0:00:12.4]} 37. Qxe6 {[%clk
0:00:08.6]} 37... Rxe6 {[%clk 0:00:12]} 38. f4 {[%clk 0:00:07.8]} 38... f6
{[%clk 0:00:12.2]} 39. Bd4 {[%clk 0:00:08.1]} 39... b5 {[%clk 0:00:08.2]} 40.
Kf3 {[%clk 0:00:07.1]} 40... a5 {[%clk 0:00:05.8]} 41. a3 {[%clk 0:00:06.4]}
41... Rc6 {[%clk 0:00:04.4]} 42. h4 {[%clk 0:00:06.3]} 42... Kg6 {[%clk
0:00:04.2]} 43. h5+ {[%clk 0:00:05.9]} 43... Kh7 {[%clk 0:00:02.8]} 44. g5
{[%clk 0:00:05.7]} 44... fxg5 {[%clk 0:00:02.3]} 45. fxg5 {[%clk 0:00:06.6]}
45... Re6 {[%clk 0:00:02.7]} 46. Kf2 {[%clk 0:00:04.4]} 46... Re4 {[%clk
0:00:02.7]} 47. Kf3 {[%clk 0:00:04.6]} 47... Re1 {[%clk 0:00:02.2]} 48. Kg4
{[%clk 0:00:04.1]} 48... Rh1 {[%clk 0:00:01.9]} 49. g6+ {[%clk 0:00:04.1]} 49...
Kh6 {[%clk 0:00:02.7]} 50. Be3+ {[%clk 0:00:04]} 50... Kg7 {[%clk 0:00:02.3]}
51. Kg5 {[%clk 0:00:03.9]} 51... Rh2 {[%clk 0:00:01.9]} 52. h6+ {[%clk
0:00:04.5]} 52... Kg8 {[%clk 0:00:02.4]} 53. Bd4 {[%clk 0:00:05.4]} 53... Rg2+
{[%clk 0:00:02.5]} 54. Kf5 {[%clk 0:00:04.9]} 54... Rh2 {[%clk 0:00:02.4]} 55.
h7+ {[%clk 0:00:05.8]} 55... Kf8 {[%clk 0:00:02.3]} 56. h8=Q+ {[%clk 0:00:05.4]}
56... Rxh8 {[%clk 0:00:02.3]} 57. Bxh8 {[%clk 0:00:06.3]} 57... b4 {[%clk
0:00:03]} 58. cxb4 {[%clk 0:00:05.8]} 58... axb4 {[%clk 0:00:03.9]} 59. axb4
{[%clk 0:00:06.1]} 1-0

[Event "*** SCC Grand Prix: Titled Tuesday Blitz"]
[Site "Chess.com"]
[Date "2020.06.09"]
[Round "4"]
[White "csati17"]
[Black "Paralinch"]
[Result "0-1"]
[WhiteElo "2580"]
[BlackElo "2861"]
[TimeControl "180+1"]
[EndTime "9:40:50 PDT"]
[Termination "Paralinch won by resignation"]

1. c4 {[%clk 0:03:00.9]} 1... c5 {[%clk 0:02:59.9]} 2. g3 {[%clk 0:03:00.5]}
2... g6 {[%clk 0:02:59.4]} 3. Bg2 {[%clk 0:03:00.8]} 3... Bg7 {[%clk 0:03:00]}
4. Nc3 {[%clk 0:03:01.7]} 4... Nc6 {[%clk 0:03:00.2]} 5. e3 {[%clk 0:03:01.7]}
5... e5 {[%clk 0:03:00]} 6. Nge2 {[%clk 0:03:01.4]} 6... Nge7 {[%clk 0:03:00.4]}
7. O-O {[%clk 0:03:01.9]} 7... O-O {[%clk 0:03:00]} 8. d3 {[%clk 0:03:02.2]}
8... d6 {[%clk 0:02:59.7]} 9. a3 {[%clk 0:03:00.6]} 9... a5 {[%clk 0:02:57.8]}
10. h3 {[%clk 0:02:56.7]} 10... Be6 {[%clk 0:02:57.4]} 11. Nd5 {[%clk
0:02:56.5]} 11... Rb8 {[%clk 0:02:49.7]} 12. Nec3 {[%clk 0:02:53.3]} 12... Qd7
{[%clk 0:02:41.9]} 13. Nb6 {[%clk 0:02:51]} 13... Qd8 {[%clk 0:02:40.9]} 14.
Nbd5 {[%clk 0:02:51.5]} 14... f5 {[%clk 0:02:28.3]} 15. f4 {[%clk 0:02:30.1]}
15... Qd7 {[%clk 0:02:14.9]} 16. Kh2 {[%clk 0:02:25.8]} 16... Bf7 {[%clk
0:02:06.8]} 17. Rb1 {[%clk 0:02:21.1]} 17... Nxd5 {[%clk 0:02:06.5]} 18. Nxd5
{[%clk 0:02:19.7]} 18... Rfe8 {[%clk 0:02:01.1]} 19. b4 {[%clk 0:02:16.4]} 19...
axb4 {[%clk 0:01:59.3]} 20. axb4 {[%clk 0:02:16.4]} 20... e4 {[%clk 0:01:56.1]}
21. dxe4 {[%clk 0:02:04.9]} 21... fxe4 {[%clk 0:01:57]} 22. b5 {[%clk
0:02:03.2]} 22... Na5 {[%clk 0:01:57.2]} 23. Qc2 {[%clk 0:01:29]} 23... Bxd5
{[%clk 0:01:39.2]} 24. cxd5 {[%clk 0:01:29.9]} 24... Qe7 {[%clk 0:01:34.3]} 25.
b6 {[%clk 0:01:20.3]} 25... c4 {[%clk 0:01:31]} 26. Ba3 {[%clk 0:01:18.9]} 26...
Rbc8 {[%clk 0:01:28.6]} 27. Rb4 {[%clk 0:01:10.9]} 27... c3 {[%clk 0:01:25.4]}
28. Rxe4 {[%clk 0:01:08.2]} 28... Qd7 {[%clk 0:01:21]} 29. Bc1 {[%clk
0:00:47.7]} 29... Rxe4 {[%clk 0:01:09.2]} 30. Bxe4 {[%clk 0:00:48.6]} 30... Qb5
{[%clk 0:01:06.4]} 31. Rf2 {[%clk 0:00:44.6]} 31... Qxb6 {[%clk 0:00:57.7]} 32.
f5 {[%clk 0:00:45]} 32... Qb3 {[%clk 0:00:57.4]} 33. fxg6 {[%clk 0:00:42.5]}
33... hxg6 {[%clk 0:00:58.3]} 34. Qe2 {[%clk 0:00:35.8]} 34... Rf8 {[%clk
0:00:50.3]} 35. Rxf8+ {[%clk 0:00:34.6]} 35... Kxf8 {[%clk 0:00:50.8]} 36. Bxg6
{[%clk 0:00:34.6]} 36... Qxd5 {[%clk 0:00:47.2]} 37. e4 {[%clk 0:00:35]} 37...
Qe6 {[%clk 0:00:36.3]} 38. Qf2+ {[%clk 0:00:22.7]} 38... Qf6 {[%clk 0:00:34.4]}
39. Bf5 {[%clk 0:00:22.9]} 39... Nc4 {[%clk 0:00:32]} 40. Qa7 {[%clk 0:00:20.8]}
40... Qe7 {[%clk 0:00:23.6]} 41. Qb8+ {[%clk 0:00:18.7]} 41... Kf7 {[%clk
0:00:24]} 42. Qc8 {[%clk 0:00:17.5]} 42... Ne5 {[%clk 0:00:21.4]} 43. Kg2 {[%clk
0:00:14.9]} 43... b5 {[%clk 0:00:20.6]} 44. Qxc3 {[%clk 0:00:14.4]} 44... Qb7
{[%clk 0:00:20.7]} 45. Qb3+ {[%clk 0:00:14.1]} 45... Ke7 {[%clk 0:00:20.2]} 46.
Bg5+ {[%clk 0:00:13.8]} 46... Kf8 {[%clk 0:00:18.8]} 47. Qe6 {[%clk 0:00:13.9]}
47... Nf7 {[%clk 0:00:18.3]} 48. Bf4 {[%clk 0:00:12.2]} 48... Be5 {[%clk
0:00:16.9]} 49. Be3 {[%clk 0:00:12.2]} 49... b4 {[%clk 0:00:17]} 50. Qb3 {[%clk
0:00:11.6]} 50... Bc3 {[%clk 0:00:16.1]} 51. h4 {[%clk 0:00:10.2]} 51... Qa6
{[%clk 0:00:16.5]} 52. Kh3 {[%clk 0:00:09.9]} 52... Qf1+ {[%clk 0:00:16.4]} 53.
Kg4 {[%clk 0:00:09.9]} 53... Ne5+ {[%clk 0:00:16.9]} 54. Kh5 {[%clk 0:00:09.9]}
54... Qf3+ {[%clk 0:00:16.8]} 55. g4 {[%clk 0:00:10.1]} 55... Qxe3 {[%clk
0:00:17.3]} 56. Qe6 {[%clk 0:00:10.4]} 56... Qc5 {[%clk 0:00:16.3]} 57. g5
{[%clk 0:00:07.6]} 57... Qc7 {[%clk 0:00:15.6]} 58. g6 {[%clk 0:00:07.6]} 58...
Qe7 {[%clk 0:00:12.8]} 59. Qc8+ {[%clk 0:00:07.4]} 59... Kg7 {[%clk 0:00:13.3]}
60. Qb8 {[%clk 0:00:03.3]} 60... Nf3 {[%clk 0:00:09]} 61. Kg4 {[%clk 0:00:03]}
61... Nh2+ {[%clk 0:00:07.9]} 62. Kh3 {[%clk 0:00:02.5]} 62... Nf3 {[%clk
0:00:08.3]} 63. Kg4 {[%clk 0:00:02.7]} 63... Nxh4 {[%clk 0:00:08.6]} 64. Qb5
{[%clk 0:00:02.1]} 64... Nxg6 {[%clk 0:00:07.9]} 65. Bxg6 {[%clk 0:00:02.3]}
65... Kxg6 {[%clk 0:00:08.8]} 66. Qh5+ {[%clk 0:00:02.9]} 66... Kg7 {[%clk
0:00:08.9]} 67. Kf3 {[%clk 0:00:03.8]} 67... Qf7+ {[%clk 0:00:09]} 68. Ke2
{[%clk 0:00:04.3]} 0-1

[Event "*** SCC Grand Prix: Titled Tuesday Blitz"]
[Site "Chess.com"]
[Date "2020.06.09"]
[Round "4"]
[White "guillembaches"]
[Black "LionTheLeon_06"]
[Result "0-1"]
[WhiteElo "2485"]
[BlackElo "2691"]
[TimeControl "180+1"]
[EndTime "9:40:54 PDT"]
[Termination "LionTheLeon_06 won on time"]

1. e4 {[%clk 0:03:00.9]} 1... c5 {[%clk 0:02:59.9]} 2. Nf3 {[%clk 0:03:01.2]}
2... d6 {[%clk 0:02:59.2]} 3. d4 {[%clk 0:02:59.3]} 3... cxd4 {[%clk 0:03:00.1]}
4. Nxd4 {[%clk 0:02:59.9]} 4... Nf6 {[%clk 0:03:00.4]} 5. Nc3 {[%clk 0:03:00.3]}
5... a6 {[%clk 0:03:00.9]} 6. Be2 {[%clk 0:03:00.7]} 6... e5 {[%clk 0:03:00.9]}
7. Nf3 {[%clk 0:03:01.2]} 7... Be7 {[%clk 0:03:00.1]} 8. Bg5 {[%clk 0:03:01.6]}
8... Be6 {[%clk 0:02:58.9]} 9. Bxf6 {[%clk 0:03:01.8]} 9... Bxf6 {[%clk
0:02:59.8]} 10. Nd5 {[%clk 0:03:02.2]} 10... Nd7 {[%clk 0:02:59.1]} 11. Bc4
{[%clk 0:03:02.4]} 11... Rc8 {[%clk 0:02:55.2]} 12. Bb3 {[%clk 0:03:02]} 12...
O-O {[%clk 0:02:49.9]} 13. O-O {[%clk 0:03:01.9]} 13... Be7 {[%clk 0:02:34.8]}
14. Qe2 {[%clk 0:02:57.3]} 14... Nb6 {[%clk 0:02:32.8]} 15. Rad1 {[%clk
0:02:51.9]} 15... Nxd5 {[%clk 0:02:27]} 16. Bxd5 {[%clk 0:02:51.2]} 16... Qb6
{[%clk 0:02:27.6]} 17. c3 {[%clk 0:02:44.2]} 17... Rc5 {[%clk 0:02:24.9]} 18.
Bxe6 {[%clk 0:02:16.4]} 18... fxe6 {[%clk 0:02:25.8]} 19. Ne1 {[%clk 0:02:13.1]}
19... Qc6 {[%clk 0:01:58.8]} 20. Nd3 {[%clk 0:01:59.8]} 20... Rc4 {[%clk
0:01:58.5]} 21. Rfe1 {[%clk 0:01:55.9]} 21... Qc8 {[%clk 0:01:52.1]} 22. g3
{[%clk 0:01:46.2]} 22... b5 {[%clk 0:01:47.5]} 23. a3 {[%clk 0:01:44.3]} 23...
a5 {[%clk 0:01:32.1]} 24. h4 {[%clk 0:01:37.6]} 24... Bd8 {[%clk 0:01:29.7]} 25.
Kg2 {[%clk 0:01:29.1]} 25... Bb6 {[%clk 0:01:27.5]} 26. Rd2 {[%clk 0:01:22.3]}
26... a4 {[%clk 0:01:14.2]} 27. Qg4 {[%clk 0:01:17]} 27... Rc7 {[%clk
0:00:47.4]} 28. Nb4 {[%clk 0:01:11.1]} 28... Bc5 {[%clk 0:00:43.9]} 29. f3
{[%clk 0:00:58.6]} 29... Rcf7 {[%clk 0:00:39.1]} 30. Rd3 {[%clk 0:00:57.8]}
30... Rf6 {[%clk 0:00:35.7]} 31. h5 {[%clk 0:00:54.2]} 31... h6 {[%clk
0:00:33.6]} 32. Rf1 {[%clk 0:00:51.2]} 32... Kh8 {[%clk 0:00:30.3]} 33. Rd2
{[%clk 0:00:50.9]} 33... Qb7 {[%clk 0:00:27.9]} 34. Nd3 {[%clk 0:00:49.5]} 34...
Ba7 {[%clk 0:00:26.1]} 35. Re2 {[%clk 0:00:45.8]} 35... Qc6 {[%clk 0:00:22.6]}
36. Nb4 {[%clk 0:00:45.7]} 36... Qc4 {[%clk 0:00:22.8]} 37. Rd2 {[%clk
0:00:38.5]} 37... Qc7 {[%clk 0:00:21.8]} 38. Re2 {[%clk 0:00:34.6]} 38... Qc4
{[%clk 0:00:20.9]} 39. Rd2 {[%clk 0:00:34.2]} 39... d5 {[%clk 0:00:17.2]} 40.
Rdd1 {[%clk 0:00:20.9]} 40... d4 {[%clk 0:00:15.5]} 41. cxd4 {[%clk 0:00:19.9]}
41... Bxd4 {[%clk 0:00:15.8]} 42. Nd3 {[%clk 0:00:19.6]} 42... Qc2+ {[%clk
0:00:15]} 43. Kh3 {[%clk 0:00:18.1]} 43... Qe2 {[%clk 0:00:12]} 44. Nb4 {[%clk
0:00:14]} 44... Rxf3 {[%clk 0:00:08.9]} 45. Rxf3 {[%clk 0:00:14]} 45... Qxf3
{[%clk 0:00:05.7]} 46. Qxf3 {[%clk 0:00:13.5]} 46... Rxf3 {[%clk 0:00:06.6]} 47.
Rc1 {[%clk 0:00:13.7]} 47... Bxb2 {[%clk 0:00:06.2]} 48. Rc7 {[%clk 0:00:13.3]}
48... Bxa3 {[%clk 0:00:05.2]} 49. Nc6 {[%clk 0:00:13.3]} 49... Bd6 {[%clk
0:00:04.1]} 50. Rd7 {[%clk 0:00:13.5]} 50... Bc5 {[%clk 0:00:02.4]} 51. Nxe5
{[%clk 0:00:13.5]} 51... Rf6 {[%clk 0:00:02.7]} 52. Ng6+ {[%clk 0:00:13.5]}
52... Kh7 {[%clk 0:00:03]} 53. Rd8 {[%clk 0:00:13.9]} 53... Rxg6 {[%clk
0:00:03.4]} 54. hxg6+ {[%clk 0:00:14.3]} 54... Kxg6 {[%clk 0:00:04.3]} 55. Rb8
{[%clk 0:00:14.4]} 55... b4 {[%clk 0:00:04.7]} 56. Rb5 {[%clk 0:00:14.6]} 56...
Be7 {[%clk 0:00:04.9]} 57. Kg4 {[%clk 0:00:14.9]} 57... a3 {[%clk 0:00:05.3]}
58. Rb6 {[%clk 0:00:14.2]} 58... a2 {[%clk 0:00:05.2]} 59. Rxe6+ {[%clk
0:00:13.1]} 59... Kf7 {[%clk 0:00:05.9]} 60. Ra6 {[%clk 0:00:13.1]} 60... b3
{[%clk 0:00:06.3]} 61. Kf3 {[%clk 0:00:13.6]} 61... Bf6 {[%clk 0:00:06.5]} 62.
Ra7+ {[%clk 0:00:12.2]} 62... Kg6 {[%clk 0:00:06.5]} 63. e5 {[%clk 0:00:12.7]}
63... Bxe5 {[%clk 0:00:06.4]} 64. Ke4 {[%clk 0:00:13.2]} 64... a1=Q {[%clk
0:00:06.1]} 0-1

[Event "*** SCC Grand Prix: Titled Tuesday Blitz"]
[Site "Chess.com"]
[Date "2020.06.09"]
[Round "4"]
[White "TregubovP"]
[Black "colegiodemadrid"]
[Result "1-0"]
[WhiteElo "2566"]
[BlackElo "2369"]
[TimeControl "180+1"]
[EndTime "9:41:00 PDT"]
[Termination "TregubovP won by resignation"]

1. e4 {[%clk 0:03:00.9]} 1... e5 {[%clk 0:02:57.8]} 2. Nf3 {[%clk 0:03:00.3]}
2... Nc6 {[%clk 0:02:55.3]} 3. Bb5 {[%clk 0:03:00.7]} 3... g6 {[%clk 0:02:55.8]}
4. d4 {[%clk 0:02:59.6]} 4... exd4 {[%clk 0:02:56.7]} 5. Bg5 {[%clk 0:02:59.8]}
5... Be7 {[%clk 0:02:55.6]} 6. Bxe7 {[%clk 0:02:59.7]} 6... Qxe7 {[%clk
0:02:56.5]} 7. O-O {[%clk 0:02:59.6]} 7... Qc5 {[%clk 0:02:53.6]} 8. Bxc6 {[%clk
0:02:53.1]} 8... dxc6 {[%clk 0:02:52.3]} 9. Qxd4 {[%clk 0:02:47.4]} 9... Qxd4
{[%clk 0:02:51.6]} 10. Nxd4 {[%clk 0:02:47.9]} 10... Bd7 {[%clk 0:02:51]} 11.
Nc3 {[%clk 0:02:42.1]} 11... O-O-O {[%clk 0:02:50.1]} 12. Rad1 {[%clk
0:02:42.5]} 12... a6 {[%clk 0:02:48.4]} 13. b4 {[%clk 0:02:36]} 13... Nf6 {[%clk
0:02:43.2]} 14. f3 {[%clk 0:02:33.7]} 14... Ne8 {[%clk 0:02:38.9]} 15. Nb3
{[%clk 0:02:15]} 15... Be6 {[%clk 0:02:30.7]} 16. Rxd8+ {[%clk 0:02:09.8]} 16...
Kxd8 {[%clk 0:02:31.6]} 17. Nc5 {[%clk 0:02:08.9]} 17... Bc8 {[%clk 0:02:27.6]}
18. Rd1+ {[%clk 0:02:07.2]} 18... Ke7 {[%clk 0:02:24.8]} 19. Kf2 {[%clk
0:02:06.4]} 19... b6 {[%clk 0:02:18.8]} 20. Nd3 {[%clk 0:01:59.7]} 20... Nd6
{[%clk 0:02:19.1]} 21. h4 {[%clk 0:01:45.8]} 21... Nc4 {[%clk 0:02:18.5]} 22. g4
{[%clk 0:01:41.4]} 22... Rd8 {[%clk 0:02:09.3]} 23. Ke2 {[%clk 0:01:33.5]} 23...
Be6 {[%clk 0:02:04.9]} 24. Nf4 {[%clk 0:01:27.4]} 24... Rxd1 {[%clk 0:01:59.6]}
25. Kxd1 {[%clk 0:01:27.5]} 25... Bd7 {[%clk 0:01:34.9]} 26. Ke2 {[%clk
0:01:27.2]} 26... a5 {[%clk 0:01:25]} 27. bxa5 {[%clk 0:01:24]} 27... Nxa5
{[%clk 0:01:24.5]} 28. Kd3 {[%clk 0:01:22.8]} 28... Kd6 {[%clk 0:01:18.3]} 29.
g5 {[%clk 0:01:13.8]} 29... Nb7 {[%clk 0:01:14.3]} 30. Kd4 {[%clk 0:01:11.4]}
30... c5+ {[%clk 0:01:11.8]} 31. Ke3 {[%clk 0:01:09.4]} 31... c6 {[%clk
0:01:09.6]} 32. a4 {[%clk 0:01:00.7]} 32... Na5 {[%clk 0:01:09.2]} 33. Kd3
{[%clk 0:00:55.7]} 33... Bc8 {[%clk 0:01:04.7]} 34. h5 {[%clk 0:00:42.1]} 34...
Ba6+ {[%clk 0:01:03.6]} 35. Ke3 {[%clk 0:00:42.2]} 35... Nc4+ {[%clk 0:01:03.8]}
36. Kf2 {[%clk 0:00:34.8]} 36... Ke5 {[%clk 0:01:00.5]} 37. Nd3+ {[%clk
0:00:31.3]} 37... Kd6 {[%clk 0:00:51.1]} 38. h6 {[%clk 0:00:30.2]} 38... Na3
{[%clk 0:00:44.8]} 39. f4 {[%clk 0:00:24.5]} 39... Nxc2 {[%clk 0:00:42.8]} 40.
Ne5 {[%clk 0:00:24.6]} 40... b5 {[%clk 0:00:33.3]} 41. axb5 {[%clk 0:00:19.1]}
41... cxb5 {[%clk 0:00:34.2]} 42. Nxf7+ {[%clk 0:00:19.3]} 42... Ke7 {[%clk
0:00:31.9]} 43. Ne5 {[%clk 0:00:18.5]} 43... b4 {[%clk 0:00:31.7]} 44. Nxg6+
{[%clk 0:00:13.8]} 44... Ke8 {[%clk 0:00:30.6]} 45. Na4 {[%clk 0:00:11.8]} 45...
Bb5 {[%clk 0:00:29.6]} 46. Nxc5 {[%clk 0:00:10.3]} 46... Nd4 {[%clk 0:00:29.3]}
47. Ne5 {[%clk 0:00:09.5]} 47... Ne6 {[%clk 0:00:26.3]} 48. Nxe6 {[%clk
0:00:07.9]} 48... b3 {[%clk 0:00:26]} 49. g6 {[%clk 0:00:06.2]} 49... b2 {[%clk
0:00:24.9]} 50. gxh7 {[%clk 0:00:05.9]} 50... b1=Q {[%clk 0:00:25.5]} 51. h8=Q+
{[%clk 0:00:06.3]} 51... Ke7 {[%clk 0:00:26]} 52. Qg7+ {[%clk 0:00:05.7]} 52...
Kd6 {[%clk 0:00:26.5]} 53. Qc7+ {[%clk 0:00:03.5]} 53... Kxe6 {[%clk 0:00:26]}
54. Qb6+ {[%clk 0:00:03.5]} 54... Ke7 {[%clk 0:00:24.9]} 55. Qc5+ {[%clk
0:00:04]} 55... Ke6 {[%clk 0:00:24.8]} 56. Qd5+ {[%clk 0:00:04.2]} 56... Ke7
{[%clk 0:00:24.9]} 57. Qc5+ {[%clk 0:00:03.6]} 57... Ke6 {[%clk 0:00:25]} 58.
Qb6+ {[%clk 0:00:03.7]} 58... Ke7 {[%clk 0:00:25.1]} 59. Qc7+ {[%clk 0:00:03.8]}
59... Ke6 {[%clk 0:00:25.3]} 60. Qf7+ {[%clk 0:00:04.2]} 60... Kd6 {[%clk
0:00:25.5]} 61. Qd5+ {[%clk 0:00:04.7]} 61... Ke7 {[%clk 0:00:25.4]} 62. Kg3
{[%clk 0:00:04.9]} 62... Qg1+ {[%clk 0:00:24.5]} 63. Kh4 {[%clk 0:00:05.1]}
63... Qh2+ {[%clk 0:00:18.1]} 64. Kg5 {[%clk 0:00:05.2]} 64... Qg3+ {[%clk
0:00:17.9]} 65. Ng4 {[%clk 0:00:05.2]} 65... Be2 {[%clk 0:00:17]} 66. Qe5+
{[%clk 0:00:05.6]} 66... Kd7 {[%clk 0:00:17.1]} 67. Qf5+ {[%clk 0:00:05.8]}
67... Kc6 {[%clk 0:00:17.4]} 68. h7 {[%clk 0:00:06.2]} 68... Qh3 {[%clk
0:00:15.7]} 69. Qf6+ {[%clk 0:00:05.9]} 69... Kc5 {[%clk 0:00:15.8]} 70. Qe5+
{[%clk 0:00:05.6]} 70... Kb4 {[%clk 0:00:16.1]} 71. h8=Q {[%clk 0:00:05]} 71...
Qxg4+ {[%clk 0:00:15.6]} 72. Kf6 {[%clk 0:00:05.6]} 72... Bc4 {[%clk 0:00:15.8]}
73. Qhb8+ {[%clk 0:00:05.4]} 1-0